[Event "Polish Youth B18 Championship 2023"]
[Site "Jastrzebia Gora"]
[Date "2023.03.12"]
[Round "1.18"]
[White "Wojdak, Jan"]
[Black "Bem, Tymoteusz"]
[Result "1-0"]
[ECO "B31"]
[WhiteElo "2097"]
[BlackElo "1748"]
[Annotator "TA"]
[PlyCount "73"]
[EventDate "2023.03.11"]
[EventType "swiss"]
[EventCountry "POL"]
[SourceTitle "playchess.com"]
[Source "ChessBase"]
[SourceQuality "1"]
[TimeControl "40/5400+30:1800+30"]

{[%evp 14,73,34,38,20,0,18,16,36,22,31,0,24,0,0,0,35,35,35,35,36,36,39,39,24,39,33,0,2,0,0,0,0,-15,-16,-38,-38,-42,-27,-20,-21,-21,-21,-37,-33,-31,2,2,70,66,67,50,562,569,561,561,545,539,517,431,510,482]} 1. e4 {[%emt 0:00:07]} c5 {[%emt 0:00:25]} 2. Nf3 {[%emt 0:00:08]} Nc6 {[%emt 0:00:25]} 3. Bb5 {[%emt 0:00:08]} g6 {[%emt 0:00:35]} 4. Bxc6 {[%emt 0:01:10]} bxc6 {[%emt 0:10:13]} 5. d4 {[%emt 0:08:12]} cxd4 {[%emt 0:10:19]} 6. Qxd4 {[%emt 0:00:58]} Nf6 {[%emt 0:01:18]} 7. e5 {[%emt 0:11:00]} Nd5 {[%emt 0:05:43]} 8. O-O {[%emt 0:02:41] 8.c4 might become the main line.} Bg7 {[%emt 0:05:47] B27: Sicilian: 2 Nf3, unusual Black 2nd moves.} 9. Rd1 {[%emt 0:24:38]} O-O {[%emt 0:10:07]} (9... f6 $5 {[%cal Rf6e5]}) 10. Qh4 {[%emt 0:00:45] [#]} f6 $146 {[%emt 0:19:21] The position is equal.} ({Predecessor:} 10... Re8 11. c4 Nc7 12. Nc3 Ne6 13. Ne4 Qc7 14. Neg5 Nxg5 15. Bxg5 d6 16. exd6 exd6 {1-0 Neiksans,A (2575)-Ozolins,A (2147) Puhajarve Rapid op 21st 2021 (36)}) 11. c4 {[%emt 0:02:29]} Nc7 {[%emt 0:08:13][%cal Bd5c7,Bc7e8,Be8d6,Bd6c4,Bc4b2,Bb2d3][%mdl 32]} 12. Qg3 {[%emt 0:05:45]} Ne8 {[%emt 0:07:15]} 13. Nc3 {[%emt 0:10:39]} fxe5 {[%emt 0:01:58]} 14. Nxe5 {[%emt 0:01:02]} Qc7 {[%emt 0:01:08] [#]} 15. Nxd7 {[%emt 0:01:53] A dynamic duo of knights.} Qxg3 {[%emt 0:01:48]} 16. hxg3 {[%emt 0:00:21]} Rf7 {[%emt 0:05:59]} 17. Bf4 {[%emt 0:05:32][%cal Bc1f4,Bf4e5,Be5d4][%mdl 32] Inhibits Nd6. Strongly threatening Ne5.} Nd6 $1 {[%emt 0:02:14]} 18. Ne5 {[%emt 0:11:55]} Bxe5 {[%emt 0:00:06][%mdl 64] [#] Remove Defender} 19. Bxe5 {[%emt 0:00:03]} Nxc4 20. Rd8+ {[%emt 0:05:36]} Rf8 {[%emt 0:00:08] Black is weak on the dark squares} 21. Rxf8+ {[%emt 0:00:09]} Kxf8 {[%emt 0:00:02]} 22. Bd4 {[%emt 0:01:06]} Nxb2 {[%emt 0:02:42]} 23. Re1 {[%emt 0:00:10]} Nd3 {[%emt 0:01:17]} 24. Re3 {[%emt 0:00:36]} c5 {[%emt 0:02:53]} 25. Rxd3 Bf5 {[%emt 0:00:11]} 26. Rd2 {[%emt 0:01:32]} cxd4 {[%emt 0:00:05]} 27. Rxd4 $11 {[%emt 0:00:02][%mdl 4096] Endgame KRB-KRN} Rc8 {[%emt 0:00:45]} 28. Nd5 {[%emt 0:03:00]} Rd8 {[%emt 0:01:10] Threatens to win with ...e6.} 29. g4 {[%emt 0:01:40] Repels e6} e5 {[%emt 0:00:01]} (29... Bxg4 $5 {[%cal Rg4f5]} 30. Rf4+ Kg7 $17) 30. Ra4 {[%emt 0:00:24]} Bc2 {[%emt 0:01:42]} (30... Rxd5 $11 31. gxf5 a5) 31. Ra5 $14 {[%emt 0:00:16]} Rd7 {[%emt 0:00:34]} 32. Ne3 {[%emt 0:00:24]} (32. Nf6 $5 {[%cal Rf6d7]} Re7 33. Rxe5 $14) 32... e4 $2 {[%emt 0:00:36][%mdl 8192] Black cannot hold the game after this.} 33. Nxc2 $18 {[%emt 0:00:29] White is clearly winning.} Rd1+ {[%emt 0:00:01]} 34. Kh2 {[%emt 0:00:06]} Rd2 {[%emt 0:00:01]} 35. Ne3 {[%emt 0:00:32]} Rxf2 {[%emt 0:00:02]} 36. Kg3 {[%emt 0:00:27]} Re2 {[%emt 0:00:05]} 37. Kf4 {[%emt 0:00:10] Weighted Error Value: White=0.12 (very precise) /Black=0.35} 1-0

[Event "Polish Youth B18 Championship 2023"]
[Site "Jastrzebia Gora"]
[Date "2023.03.12"]
[Round "1.19"]
[White "Sternik, Piotr"]
[Black "Dziendziel, Mateusz"]
[Result "0-1"]
[ECO "D11"]
[WhiteElo "1746"]
[BlackElo "2084"]
[Annotator "TA"]
[PlyCount "41"]
[EventDate "2023.03.11"]
[EventType "swiss"]
[EventCountry "POL"]
[SourceTitle "playchess.com"]
[Source "ChessBase"]
[SourceQuality "1"]
[TimeControl "40/5400+30:1800+30"]

{[%evp 13,41,27,35,31,88,72,79,101,112,110,238,241,229,177,166,121,133,0,22,17,33,35,22,-109,-119,-221,-197,-385,-377,-354]} 1. d4 {[%emt 0:00:03]} d5 {[%emt 0:00:05]} 2. c4 {[%emt 0:00:05]} c6 {[%emt 0:00:01]} 3. Nf3 {[%emt 0:00:10]} Nf6 {[%emt 0:00:03]} 4. g3 {[%emt 0:00:15]} e6 {[%emt 0:00:46]} 5. Bg2 {[%emt 0:00:06]} dxc4 {[%emt 0:01:16]} 6. O-O {[%emt 0:01:08]} Nbd7 {[%emt 0:00:55]} 7. a4 {[%emt 0:11:23]} a5 {[%emt 0:04:40]} 8. Qc2 {[%emt 0:15:02] E04: Open Catalan: 5 Nf3.} Bd6 {[%emt 0:19:53] [#]} (8... Nd5 $14) 9. e4 $146 {[%emt 0:16:55] e5 is the strong threat.} ({Predecessor:} 9. Nbd2 Nb6 10. e4 Be7 11. Rd1 O-O 12. Ne5 h6 13. Ndxc4 Nxc4 14. Nxc4 Re8 15. Bf4 Bb4 {1-0 Kohler,T (2241)-Alvarez,L (1870) Berlin Lichtenberger op 8th 2009 (1)}) 9... e5 {[%emt 0:02:27]} 10. Na3 {[%emt 0:00:14] White is better.} Bxa3 {[%emt 0:04:05]} 11. Rxa3 {[%emt 0:01:12]} b5 {[%emt 0:12:06]} (11... exd4 $16 12. Qxc4 Qe7) 12. dxe5 $18 {[%emt 0:12:45]} Ng4 {[%emt 0:00:26]} 13. axb5 {[%emt 0:00:31]} cxb5 {[%emt 0:01:07]} 14. e6 {[%emt 0:18:46]} fxe6 {[%emt 0:05:59] [#]} 15. Ng5 {[%emt 0:00:30]} (15. e5 $1 $16) 15... Ra6 {[%emt 0:09:56]} (15... Nde5 $5) 16. Bh3 {[%emt 0:11:01]} Ndf6 {[%emt 0:16:01] [#]} 17. e5 $1 {[%emt 0:03:45]} Nxe5 {[%emt 0:00:23] Hoping for ...0-0.} 18. Qe2 {[%emt 0:00:05]} (18. Re3 $11 Nd3 19. Nxe6 Bxe6 20. Bxe6 Rxe6 21. Rxe6+ Kf7 22. Ra6) 18... Nd3 $17 {[%emt 0:05:11] And now ...0-0 would win.} 19. Bxe6 {[%emt 0:04:53] [#]} (19. Bf5 $17 {was called for.}) 19... Qe7 $1 $19 {[%emt 0:01:00][%cal Rc8e6]} 20. Re1 $2 {[%emt 0:01:04]} (20. Rxd3 cxd3 21. Bf7+ Kf8 22. Qxe7+ Kxe7 23. Re1+ Kd7 24. Bf4) 20... Bxe6 {[%emt 0:07:34]} (20... Nxe1 $2 {loses.} 21. Bf7+ Kf8 22. Re3 $19) 21. Nxe6 {Weighted Error Value: White=0.63/Black=0.15 (very precise)} 0-1

[Event "Polish Youth B18 Championship 2023"]
[Site "Jastrzebia Gora"]
[Date "2023.03.12"]
[Round "1.20"]
[White "Budzisz, Adrian"]
[Black "Zeissel, Andrzej"]
[Result "1-0"]
[ECO "A88"]
[WhiteElo "2069"]
[BlackElo "1717"]
[Annotator "TA"]
[PlyCount "74"]
[EventDate "2023.03.11"]
[EventType "swiss"]
[EventCountry "POL"]
[SourceTitle "playchess.com"]
[Source "ChessBase"]
[SourceQuality "1"]
[TimeControl "40/5400+30:1800+30"]

{[%evp 20,74,11,13,22,31,39,36,28,34,39,13,21,17,30,30,44,40,33,37,45,29,40,58,153,152,146,136,193,189,193,202,185,166,467,468,442,414,463,448,636,658,738,682,820,827,797,782,806,795,813,811,799,567,29936,6375,5657]} 1. d4 {[%emt 0:00:01]} f5 {[%emt 0:00:31]} 2. c4 {[%emt 0:00:15]} Nf6 {[%emt 0:00:10]} 3. g3 {[%emt 0:00:28]} g6 {[%emt 0:00:13]} 4. Bg2 {[%emt 0:00:07]} Bg7 {[%emt 0:00:10]} 5. Nc3 {[%emt 0:00:21]} d6 {[%emt 0:00:44]} 6. Nf3 {[%emt 0:00:10]} O-O {[%emt 0:00:10]} 7. O-O {[%emt 0:00:11]} c6 {[%emt 0:00:10]} 8. d5 {[%emt 0:00:05]} e5 {[%emt 0:00:06]} 9. dxe6 {[%emt 0:00:09]} Bxe6 {[%emt 0:00:07]} 10. b3 {[%emt 0:00:06]} Na6 {[%emt 0:05:49]} 11. Ng5 {[%emt 0:01:25]} Bc8 {[%emt 0:01:41] A88: Dutch Defence: Leningrad System: 5 Nf3 0-0 6 0-0 d6 7 Nc3 c6.} 12. Bb2 {[%emt 0:02:23]} Qe7 {[%emt 0:03:28]} 13. Qd2 {[%emt 0:02:43]} h6 {[%emt 0:03:10] White is slightly better.} 14. Nf3 {[%emt 0:00:05]} Be6 {[%emt 0:02:32]} 15. Rad1 {[%emt 0:04:12]} (15. Nh4 $5 {[%cal Rh4g6]} Qf7 16. Nf3 $14 (16. Qxd6 Rfd8 $17)) 15... Rad8 {[%emt 0:04:34]} 16. Nd4 {[%emt 0:01:45]} Bf7 {[%emt 0:00:42] [#]} 17. Bxc6 $1 {[%emt 0:05:08]} bxc6 {[%emt 0:03:39]} 18. Nxc6 {[%emt 0:00:07] [#]} Qe6 $146 ({Predecessor:} 18... Qb7 19. Nxd8 Rxd8 20. Nb5 d5 21. Qa5 Rd7 22. Be5 Qb6 23. Qxb6 axb6 24. cxd5 Nxd5 25. Bxg7 Kxg7 {1-0 Neto,H (2532)-Timmerman,G (2703) olm15 fin B2 email 2006 [2]}) 19. Nxd8 {[%emt 0:00:10]} Rxd8 {[%emt 0:15:42]} 20. Na4 {[%emt 0:12:45]} Rd7 {[%emt 0:25:11]} 21. Qa5 {[%emt 0:02:00]} Nc5 {[%emt 0:04:49] White now steadily converts the win.} ({Better is} 21... Nb8 $14) 22. Nxc5 $16 {[%emt 0:14:17]} dxc5 {[%emt 0:00:05]} 23. Qxc5 {[%emt 0:00:14]} Rxd1 {[%emt 0:00:38]} (23... Qxe2 $16 24. Qc8+ Bf8) 24. Rxd1 $18 {[%emt 0:00:04]} Ne4 {[%emt 0:03:52] [#]} 25. Qa3 {[%emt 0:00:39] Black must now prevent Bxg7.} (25. Qxa7 $2 Bxb2 26. Rd7 Bf6 $19) ({Weaker is} 25. Rd8+ Kh7 26. Qxa7 (26. Qa3 $2 Qb6 $19) 26... Bxb2 $17) 25... Qb6 {[%emt 0:05:20]} 26. c5 {[%emt 0:01:43]} Qc7 {[%emt 0:04:15]} (26... Nxc5 27. Bxg7 Kxg7 28. Qb2+ Kh7) 27. Bxg7 {[%emt 0:00:22]} Kxg7 {[%emt 0:00:02]} 28. Qb2+ {[%emt 0:00:25]} Kh7 {[%emt 0:00:12]} 29. b4 {[%emt 0:00:14]} f4 {[%emt 0:08:26]} (29... a5 $142 30. f3 Ng5) 30. Qd4 {[%emt 0:02:26]} Ng5 {[%emt 0:00:38]} 31. h4 {[%emt 0:00:38]} Ne6 {[%emt 0:04:31]} 32. Qd7 {[%emt 0:00:44] aiming for Qxc7.} Kg7 {[%emt 0:00:29]} 33. Qxc7 {[%emt 0:00:10][%mdl 64] Remove Defender} Nxc7 {[%emt 0:00:02]} 34. Rd7 {[%emt 0:00:22]} Nb5 {[%emt 0:00:09]} 35. c6 {[%emt 0:00:09][%cal Bc5c6,Bc6c7][%mdl 32] Strongly threatening a4.} Kf6 {[%emt 0:00:33]} 36. a4 {[%emt 0:00:07]} Nc3 {[%emt 0:00:15]} 37. c7 {[%emt 0:00:05]} Be6 {[%emt 0:00:47] Weighted Error Value: White=0.17 (very precise) /Black=0.83} 1-0

[Event "Polish Youth B18 Championship 2023"]
[Site "Jastrzebia Gora"]
[Date "2023.03.12"]
[Round "1.21"]
[White "Smuda, Tomasz"]
[Black "Wilk, Igor"]
[Result "0-1"]
[ECO "A14"]
[WhiteElo "1654"]
[BlackElo "2058"]
[Annotator "TA"]
[PlyCount "80"]
[EventDate "2023.03.11"]
[EventType "swiss"]
[EventCountry "POL"]
[SourceTitle "playchess.com"]
[Source "ChessBase"]
[SourceQuality "1"]
[TimeControl "40/5400+30:1800+30"]

{[%evp 15,80,17,19,0,12,0,4,0,6,0,0,-4,9,-16,-10,-43,113,-43,-35,-47,-45,-40,-19,-31,-20,-51,-60,-41,-29,-106,-104,-106,-107,-96,-100,-175,-145,-375,-361,-445,-422,-426,-428,-410,-416,-417,-416,-409,-352,-629,-595,-885,-873,-859,-854,-944,-981,-1211,-1201,-1201,-1150,-29976,-29976,-29984,-29985,-29985,-29986]} 1. c4 {[%emt 0:00:12]} e6 {[%emt 0:00:23]} 2. Nf3 {[%emt 0:00:25]} Nf6 {[%emt 0:00:12]} 3. g3 {[%emt 0:00:13]} d5 {[%emt 0:00:13]} 4. Bg2 {[%emt 0:00:26]} Be7 {[%emt 0:00:14]} 5. O-O {[%emt 0:00:11]} O-O {[%emt 0:00:23]} 6. b3 {[%emt 0:00:40]} c6 {[%emt 0:01:42]} 7. Bb2 {[%emt 0:00:12]} b6 $1 {[%emt 0:00:26][%mdl 4] is more profitable than 7...Nbd7 at the moment.} 8. Qc2 {[%emt 0:01:48]} Bb7 {[%emt 0:01:21]} 9. e3 {[%emt 0:01:28] A13: English Opening: 1...e6.} Nbd7 {[%emt 0:02:08]} 10. Nc3 {[%emt 0:02:33]} Rc8 {[%emt 0:02:02]} 11. Rac1 {[%emt 0:01:31] The position is equal.} Qc7 {[%emt 0:02:17] [#]} 12. Rfd1 $146 {[%emt 0:03:11]} ({Predecessor:} 12. Qb1 dxc4 13. bxc4 c5 14. Rfe1 Qb8 15. e4 Rfd8 16. h3 Qa8 17. Re3 Ne8 18. Ne2 {1-0 Van Oosterom,C (2408)-Beckhuis,G (2300) Vienna Stilwerk Masters 2011 (9)}) 12... dxc4 {[%emt 0:10:23]} 13. bxc4 {[%emt 0:01:31]} c5 {[%emt 0:00:21]} 14. Nb5 {[%emt 0:19:19]} Qb8 {[%emt 0:00:57]} 15. d4 {[%emt 0:06:23][%cal Od4d5]} Qa8 $2 {[%emt 0:12:00]} (15... a6 $15 {stays ahead.} 16. Na3 Bd6) 16. Ne1 $2 {[%emt 0:08:21]} ({White must play} 16. d5 $1 $16 {[%cal Rd5e6]}) 16... a6 $15 {[%emt 0:04:31]} 17. Na3 {[%emt 0:02:09]} Bxg2 {[%emt 0:04:20]} 18. Nxg2 {[%emt 0:00:28]} b5 {[%emt 0:00:16][%cal Bb6b5,Bb5b4][%mdl 32] aiming for ...cxd4.} 19. Qe2 {[%emt 0:19:34]} b4 $36 {[%emt 0:04:56][%mdl 2048] Black is more active.} 20. Nc2 {[%emt 0:04:54]} a5 {[%emt 0:01:32]} 21. Nf4 {[%emt 0:04:49]} Nb6 {[%emt 0:02:12][%cal Bd7b6,Bb6a4,Ba4c3,Bc3d1][%mdl 32]} 22. dxc5 {[%emt 0:03:52]} (22. d5 $11) 22... Na4 $17 {[%emt 0:01:15]} 23. Ba1 {[%emt 0:05:58][%cal Oc5c6]} Rxc5 {[%emt 0:05:36]} 24. Nd4 {[#]} Ne4 $1 {[%emt 0:06:40] ...Nac3 would be deadly. Black is more active.} 25. Nb3 {[%emt 0:06:21]} (25. Nb5 $17 {was worth a try.}) 25... Rcc8 {[%emt 0:06:54] ...Nac3 is the strong threat.} 26. h4 $2 {[%emt 0:03:01] This move loses the game for White.} (26. Qf3 $17) 26... Nac3 $19 {[%emt 0:02:02]} 27. Qb2 {[%emt 0:02:37]} a4 {[%emt 0:02:00][%cal Ba5a4,Ba4a3][%mdl 32]} (27... Nxd1 $2 28. Qxg7#) ({Don't blunder} 27... Rxc4 $2 28. Nd2 Bf6 29. Nxc4 $19) 28. Nd2 {[%emt 0:01:34]} a3 {[%emt 0:03:49]} (28... Nxd1 $2 29. Qxg7#) 29. Qc2 {[%emt 0:00:11][%cal Od2e4]} Nxd1 {[%emt 0:00:27]} 30. Nxe4 {[%emt 0:00:14] [#]} Nb2 {[%emt 0:00:28]} 31. Nd2 {[%emt 0:00:48]} Bf6 {[%emt 0:00:52]} 32. Nh5 $2 {[%emt 0:01:03]} (32. Ne2) 32... Bc3 {[%emt 0:00:26]} 33. Ne4 {[%emt 0:00:32]} Rxc4 {[%emt 0:01:28] Threatens to win with ...Be5.} 34. Ng5 {[%emt 0:00:29]} g6 {[%emt 0:00:39]} 35. Qe2 {[%emt 0:00:29]} h6 {[%emt 0:02:07]} 36. Nf4 {[%emt 0:00:32]} hxg5 {[%emt 0:00:24]} 37. hxg5 Rfc8 {[%emt 0:02:08] Hoping for ...Bg7.} 38. Bxb2 {[%emt 0:01:00]} axb2 {[%emt 0:00:10] Black mates.} 39. Rd1 {[%emt 0:00:30]} Bg7 {[%emt 0:00:30]} 40. Nd3 {[%emt 0:00:00]} Rc1 {[%emt 0:00:00] Weighted Error Value: White=0.86/Black=0.14 (very precise)} 0-1

[Event "Polish Youth B18 Championship 2023"]
[Site "Jastrzebia Gora"]
[Date "2023.03.12"]
[Round "1.22"]
[White "Ciszewski, Krzysztof"]
[Black "Czarniecki, Pawel"]
[Result "1-0"]
[ECO "D52"]
[WhiteElo "2047"]
[BlackElo "1625"]
[Annotator "TA"]
[PlyCount "63"]
[EventDate "2023.03.11"]
[EventType "swiss"]
[EventCountry "POL"]
[SourceTitle "playchess.com"]
[Source "ChessBase"]
[SourceQuality "1"]
[TimeControl "40/5400+30:1800+30"]

{[%evp 19,63,8,10,8,56,56,56,50,77,61,89,88,115,103,125,116,138,135,143,142,162,172,176,168,170,172,204,150,166,110,114,61,65,77,330,330,330,330,330,245,212,185,665,627,655,601]} 1. d4 {[%emt 0:00:12]} d5 {[%emt 0:00:02]} 2. c4 {[%emt 0:00:06]} c6 {[%emt 0:00:03]} 3. Nc3 {[%emt 0:00:14]} Nf6 {[%emt 0:00:10]} 4. Nf3 {[%emt 0:00:12]} e6 {[%emt 0:00:12]} 5. Bg5 {[%emt 0:00:47]} Nbd7 {[%emt 0:00:05][%cal Bb8d7,Bd7f6,Bf6g4][%mdl 32]} 6. e3 {[%emt 0:00:17]} Qa5 {[%emt 0:00:10]} 7. Nd2 {[%emt 0:00:15]} Bb4 {[%emt 0:00:14]} 8. Qc2 {[%emt 0:02:52]} O-O {[%emt 0:00:47]} 9. Bxf6 {[%emt 0:03:21]} Nxf6 {[%emt 0:00:11]} 10. Bd3 {[%emt 0:01:23]} Bd7 {[%emt 0:09:10]} 11. O-O {[%emt 0:01:04] D52: Queen's Gambit Declined: Cambridge Springs Variation.} Rad8 {[%emt 0:07:28] [#]} (11... Qc7 $11 {deserves consideration.}) 12. c5 $146 {[%emt 0:19:49]} ({Predecessor:} 12. a3 Bd6 13. b4 Qc7 14. f4 dxc4 15. Nxc4 h6 {½-½ Pereboev,I (2034)-Pantykin,N (2197) Novokuznetsk-ch op 2007 (8)}) 12... Bxc3 {[%emt 0:05:20]} 13. bxc3 {[%emt 0:04:28] White is slightly better.} Kh8 {[%emt 0:23:51]} 14. f4 {[%emt 0:02:17]} Ng4 {[%emt 0:01:12]} 15. Rfe1 {[%emt 0:14:00]} f5 {[%emt 0:00:58]} 16. a4 {[%emt 0:03:40][%cal Ba2a4,Ba4a5][%mdl 32]} Qc7 {[%emt 0:07:42]} 17. a5 {[%emt 0:03:50]} a6 {[%emt 0:00:38]} 18. Nf3 {[%emt 0:01:44]} Bc8 {[%emt 0:02:19]} 19. h3 {[%emt 0:03:02]} Nf6 {[%emt 0:01:42]} 20. Qf2 {[%emt 0:07:09]} Rde8 {[%emt 0:08:51]} ({Not} 20... Ne4 21. Bxe4 fxe4 22. Ne5 $16) 21. Qh4 {[%emt 0:02:19]} g6 {[%emt 0:07:50]} 22. g4 {[%emt 0:02:49]} Kg7 {[%emt 0:12:02]} 23. Kh1 {[%emt 0:05:06]} fxg4 {[%emt 0:04:58] [#]} 24. hxg4 {[%emt 0:00:11]} (24. Ne5 $1 $18) 24... Nxg4 $16 {[%emt 0:00:59]} 25. Ra2 {[%emt 0:05:40] Black is weak on the dark squares} ({White should try} 25. Qxg4 $16 e5 26. Qh4) 25... e5 $14 {[%emt 0:04:39]} 26. dxe5 {[%emt 0:05:21] Rg1 would be deadly. White has more active pieces.} Bf5 $2 {[%emt 0:01:02][%mdl 8192] This costs Black the game.} (26... Kg8 $2 27. Rg1 $18) (26... h5 $16 {keeps fighting.}) 27. Bxf5 $18 {[%emt 0:01:15]} gxf5 {[%emt 0:00:04]} 28. Nd4 {[%emt 0:00:45][%cal Bf3d4,Bd4f5,Bf5d6][%mdl 32] Against Re6. Threatens to win with Nxf5+!} Kh8 {[%emt 0:01:13]} 29. Nxf5 $40 {[%emt 0:01:28][%mdl 192] Remove Defender. Black is in trouble.} Nxe5 {[%emt 0:00:10] Hoping for ...Nf3.} 30. Nd6 {[%emt 0:02:02]} Re6 {[%emt 0:00:53]} (30... Nf3 31. Nxe8 Qf7 32. Qf6+ (32. Nd6 Qg6 $16) 32... Qxf6 33. Nxf6 Nxe1) 31. fxe5 {[%emt 0:01:02] And now Rg1 would win.} Qg7 {[%emt 0:00:24] [#] White must now prevent ...Rh6.} 32. Rh2 $1 {[%emt 0:01:16] Weighted Error Value: White=0.18 (very precise) /Black=0.60} 1-0

[Event "Polish Youth B18 Championship 2023"]
[Site "Jastrzebia Gora"]
[Date "2023.03.13"]
[Round "2.1"]
[White "Turski, Bartlomiej"]
[Black "Wojdak, Jan"]
[Result "1-0"]
[ECO "A06"]
[WhiteElo "2352"]
[BlackElo "2097"]
[Annotator "TA"]
[PlyCount "55"]
[EventDate "2023.03.11"]
[EventType "swiss"]
[EventCountry "POL"]
[SourceTitle "playchess.com"]
[Source "ChessBase"]
[SourceQuality "1"]
[TimeControl "40/5400+30:1800+30"]

{[%evp 20,55,23,18,34,22,17,17,42,36,77,78,79,69,70,77,75,80,114,116,185,148,179,180,335,329,460,489,488,493,581,554,653,560,545,546,998,1025]} 1. Nf3 {[%emt 0:00:03]} d5 {[%emt 0:01:17]} 2. c4 {[%emt 0:00:15]} e6 {[%emt 0:00:31]} 3. e3 {[%emt 0:00:05]} Nf6 {[%emt 0:02:28]} 4. Nc3 {[%emt 0:00:43]} Be7 {[%emt 0:04:20]} 5. b3 {[%emt 0:00:14]} b6 {[%emt 0:01:48]} 6. Bb2 {[%emt 0:02:49]} Bb7 {[%emt 0:00:32]} 7. cxd5 {[%emt 0:00:21]} exd5 {[%emt 0:01:07]} 8. d4 {[%emt 0:01:31]} Nbd7 {[%emt 0:02:22]} 9. Bd3 {[%emt 0:02:27]} c5 {[%emt 0:03:50]} 10. Rc1 {[%emt 0:06:42]} O-O {[%emt 0:04:18]} 11. O-O {[%emt 0:02:09]} Re8 {[%emt 0:09:15] E14: Queen's Indian: Classical Variation (4 e3).} 12. Ne2 {[%emt 0:05:35]} Bd6 {[%emt 0:15:42]} 13. Ng3 {[%emt 0:12:54]} Bxg3 {[%emt 0:00:55] The position is equal.} 14. hxg3 {[%emt 0:02:41] [#]} Ne4 $146 {[%emt 0:00:05]} ({Predecessor:} 14... Rc8 15. Qe2 Ne4 16. Nh4 Ndf6 17. Rc2 Rc7 18. Rfc1 Qc8 19. Nf3 Ng4 20. Bxe4 dxe4 {½-½ Richter,U-Kalaga,E POL-chT3 Poland 2002}) 15. dxc5 {[%emt 0:06:56]} bxc5 {[%emt 0:01:49]} 16. Nd2 {[%emt 0:03:56]} Nef6 {[%emt 0:24:01]} 17. Bf5 {[%emt 0:10:16] This pair of bishops is nice.} Qe7 {[%emt 0:06:33]} 18. Qc2 {[%emt 0:02:57] White has more active pieces.} g6 {[%emt 0:03:02] [#]} 19. Bh3 {[%emt 0:02:57]} Ba6 {[%emt 0:05:43]} (19... h5 $16 {was worth a try.}) 20. Rfd1 {[%emt 0:05:35]} Rad8 {[%emt 0:01:42]} 21. Nf3 {[%emt 0:04:12]} Qe4 $2 {[%emt 0:03:45]} (21... Ne4 22. Rxd5 Ndf6) 22. Qc3 $18 {[%emt 0:02:54] Bxd7 is the strong threat.} d4 {[%emt 0:01:16]} 23. exd4 {[%emt 0:00:53] White is clearly winning.} Nd5 {[%emt 0:00:14]} 24. Qa5 {[%emt 0:01:24]} (24. dxc5 $2 {loses.} Nxc3 25. Bxc3 Nxc5 $19) 24... Be2 {[%emt 0:00:28]} 25. Re1 {[%emt 0:01:01]} Nb4 {[%emt 0:02:15]} 26. Bxd7 {[%emt 0:06:27]} Rxd7 {[%emt 0:00:03]} 27. dxc5 {[%emt 0:00:17][%cal Oc1c4] [#] Threatens to win with Rc4!} Rd3 {[%emt 0:02:42]} 28. Rc4 {[%emt 0:01:53] Weighted Error Value: White=0.13 (very precise) /Black=0.60} 1-0